bitfinex-derivatives/quotes_BNBF0:USTF0_20250302
["timestamp","ask_amount","ask_price","bid_price","bid_amount"]
[1740947953335,0.27824643,621.23,619.86,1.68222944]
[1740947953532,0.27824643,621.22,620.63,0.877]
[1740947953734,0.864,621.25,620.63,0.877]
[1740947953937,0.27829168,621.24,620.63,0.877]
[1740947955039,0.27829168,621.24,620.64,0.69]
[1740947956540,0.27829168,621.24,620.65,0.896]
[1740947956938,0.27829168,621.26,620.65,0.896]
[1740947957141,0.27829168,621.25,620.65,0.896]
[1740947957341,0.27829168,621.26,620.65,0.896]
[1740947957541,0.27829168,621.24,620.65,0.896]
[1740947957739,0.27829168,621.23,620.65,0.896]
[1740947957942,0.27829168,621.22,620.65,0.896]
[1740947958135,0.27829168,621.26,620.65,0.896]
[1740947958340,0.27829168,621.25,620.65,0.896]
[1740947958540,0.27829168,621.26,620.65,0.896]
[1740947958736,0.32192122,621.27,620.65,0.896]
[1740947958940,0.27816636,621.26,620.65,0.896]
[1740947959544,0.27816636,621.26,620.65,2.017]
[1740947962044,0.32192122,621.27,620.65,2.017]
[1740947962245,0.27829347,621.26,620.65,2.017]
[1740947964741,0.27829347,621.38,620.65,2.017]
[1740947964942,0.27829347,621.37,620.65,2.017]
[1740947965144,0.27829347,621.38,620.65,2.017]
[1740947965348,0.27829347,621.37,620.65,2.017]
[1740947965545,0.27829347,621.38,620.65,2.017]
[1740947965745,0.27829347,621.37,620.65,2.017]
[1740947965944,0.27829347,621.36,620.65,2.017]
[1740947966141,0.27829347,621.35,620.65,2.017]
[1740947966342,0.27829347,621.34,620.65,2.017]
[1740947966547,0.27829347,621.33,620.65,2.017]
[1740947966746,0.27829347,621.32,620.65,2.017]
[1740947966942,0.27829347,621.35,620.65,2.017]
[1740947967141,0.27829347,621.34,620.65,2.017]
[1740947967346,0.27829347,621.33,620.65,2.017]
[1740947967542,0.27829347,621.32,620.65,2.017]
[1740947967749,1.4380471,621.31,620.65,2.017]
[1740947967948,0.27829347,621.3,620.65,2.017]
[1740947969350,0.27829347,621.29,620.65,2.017]
[1740947969650,0.27829347,621.28,620.65,2.017]
[1740947969851,0.27829347,621.27,620.65,2.017]
[1740947970050,0.27829347,621.26,620.65,2.017]
[1740947970451,1.4380471,621.11,620.65,2.017]
[1740947970650,0.27829347,621.1,620.65,2.017]
[1740947971852,1.4380471,621.11,620.65,2.017]
[1740947972052,0.2781446,621.1,620.65,2.017]
[1740947973553,0.27816889,621.09,620.65,2.017]
[1740947975052,1.4380471,621.1,620.65,2.017]
[1740947975252,0.27816645,621.09,620.65,2.017]
[1740947975850,1.4380471,621.04,620.65,2.017]
[1740947976052,0.27816645,621.03,620.65,2.017]
[1740947978458,0.27825202,621.02,620.65,2.017]
[1740947978649,0.27825202,621.03,620.65,2.017]
[1740947978848,0.27825202,621.02,620.65,2.017]
[1740947979047,0.27825202,621.01,620.65,2.017]
[1740947979251,0.27825202,621.03,620.65,2.017]
[1740947979451,0.27825202,621.02,620.65,2.017]
[1740947979650,0.27825202,621.01,620.65,0.896]
[1740947979854,0.27825202,621.0,620.65,0.896]
[1740947980055,0.27829151,620.99,620.65,0.896]
[1740947980256,0.27829151,621.03,620.65,0.896]
[1740947980451,0.27829151,621.02,620.65,0.896]
[1740947980655,0.27829151,621.16,620.65,0.896]
[1740947980850,0.27829151,621.15,620.65,0.896]
[1740947981054,1.4380471,621.17,620.65,0.896]
[1740947981055,0.27829151,621.14,620.65,0.896]
[1740947981355,0.27829151,621.13,620.65,0.896]
[1740947981547,0.27829151,621.16,620.65,0.896]
[1740947981752,0.27829151,621.15,620.65,0.896]
[1740947981955,0.27829151,621.16,620.65,0.896]
[1740947982155,0.27829151,621.15,620.65,0.896]
[1740947982454,0.27829151,621.14,620.65,0.896]
[1740947982656,0.27829151,621.13,620.65,0.896]
[1740947982858,0.27829151,621.16,620.65,0.896]
[1740947983157,0.941,621.36,620.65,0.896]
[1740947983355,0.27839695,621.35,620.65,0.896]
[1740947984960,0.27839282,621.34,620.65,0.896]
[1740947985163,0.27839282,621.33,620.65,0.896]
[1740947985358,0.27839282,621.32,620.65,0.896]
[1740947985553,0.27839282,621.35,620.65,0.896]
[1740947985759,0.27839282,621.34,620.65,0.896]
[1740947986057,0.941,621.36,620.65,0.896]
[1740947986058,0.27839282,621.33,620.65,0.896]
[1740947986258,0.27839282,621.35,620.65,0.896]
[1740947986455,0.27839282,621.34,620.65,0.896]
[1740947986655,0.27839282,621.35,620.65,0.896]
[1740947986960,0.27839282,621.34,620.65,0.896]
[1740947987162,0.27839282,621.35,620.65,0.896]
[1740947987364,0.27839282,621.34,620.65,0.896]
[1740947987560,0.27839282,621.35,620.65,0.896]
[1740947987757,0.27839282,621.34,620.65,0.896]
[1740947987958,0.27839282,621.33,620.65,0.896]
[1740947988158,0.2783689,621.32,620.65,0.896]
[1740947988357,0.2783689,621.35,620.65,0.896]
[1740947988662,0.2783689,621.34,620.65,0.896]
[1740947988861,0.2783689,621.35,620.65,0.896]
[1740947989062,0.2783689,621.34,620.65,0.896]
[1740947989363,0.2783689,621.33,620.65,0.896]
[1740947989557,0.2783689,621.35,620.65,0.896]
[1740947989755,0.2783689,621.34,620.65,0.896]
[1740947989960,0.2783689,621.33,620.65,0.896]
[1740947990161,0.2783689,621.35,620.65,0.896]
[1740947990357,0.2783689,621.34,620.65,0.896]
[1740947990561,0.2783689,621.35,620.65,0.896]
[1740947990762,0.2783689,621.34,620.65,0.896]
[1740947990961,0.2783689,621.33,620.65,0.896]
[1740947991158,0.2783689,621.35,620.65,0.896]
[1740947991364,0.2783689,621.34,620.65,0.896]
[1740947991563,0.2783689,621.8,620.65,0.896]
[1740947991763,0.2783689,621.79,620.65,0.896]
[1740947991963,0.32166235,621.77,620.65,0.896]
[1740947992163,0.2783689,621.76,620.65,1.905]
[1740947992463,0.32167787,621.74,620.65,1.905]
[1740947992659,0.2783689,621.73,620.65,2.597]
[1740947992860,0.32169339,621.71,620.65,2.597]
[1740947993066,0.2783689,621.7,620.65,2.597]
[1740947993265,0.2783689,621.69,620.65,2.597]
[1740947993468,0.32171409,621.67,620.65,2.597]
[1740947993664,0.2783689,621.66,620.65,2.597]
[1740947993869,1.4380471,621.37,620.65,2.597]
[1740947994168,0.2783689,621.36,620.65,2.597]
[1740947996164,1.4380471,621.37,620.65,2.597]
[1740947996364,0.27854635,621.36,620.65,2.597]
[1740947996769,0.27854635,621.35,620.65,2.597]
[1740947996969,0.27854635,621.38,620.65,2.597]
[1740947997170,0.27854635,621.37,620.65,2.597]
[1740947997371,0.27854635,621.38,620.65,2.597]
[1740947997570,1.4380471,621.39,620.65,2.597]
[1740947997571,0.27854635,621.37,620.65,2.597]
[1740947997772,0.27854635,621.38,620.65,2.597]
[1740947997974,0.27854635,621.37,620.65,2.597]
[1740947998172,0.27854635,621.38,620.65,2.597]
[1740947998373,0.27854635,621.37,620.65,2.597]
[1740947998673,0.27854635,621.36,620.65,2.597]
[1740947998873,0.27854635,621.38,620.65,2.597]
[1740947999174,0.27854635,621.37,620.65,2.597]
[1740947999369,1.4380471,621.43,620.65,2.597]
[1740947999573,0.27857313,621.42,620.65,2.597]
[1740947999975,0.27857313,621.42,620.65,3.574]
[1740948000970,0.27857313,621.41,620.65,3.574]
[1740948001173,0.27857313,621.4,620.65,3.574]
[1740948001376,0.27857313,621.39,620.65,3.574]
[1740948001577,0.27857313,621.42,620.65,3.574]
[1740948001778,0.27857313,621.38,620.65,3.574]
[1740948001974,0.27857313,621.37,620.65,3.574]
[1740948002174,0.27857313,621.42,620.65,3.574]
[1740948002377,0.32172961,621.64,620.65,3.574]
[1740948002378,1.4380471,621.34,620.65,3.574]
[1740948002578,0.27857313,621.33,620.65,3.574]
[1740948004380,0.27869821,621.32,620.65,3.574]
[1740948004578,0.27869821,621.31,620.65,3.574]
[1740948004779,0.27869821,621.33,620.65,3.574]
[1740948005076,0.27869821,621.32,620.65,3.574]
[1740948005281,0.27869821,621.33,620.65,3.574]
[1740948005580,0.32172961,621.64,620.65,3.574]
[1740948005581,0.27869725,621.32,620.65,3.574]
[1740948005782,0.27869725,621.49,620.65,3.574]
[1740948005981,0.27869725,621.48,620.65,3.574]
[1740948006181,0.27869725,621.49,620.65,3.574]
[1740948006383,0.27869725,621.48,620.65,3.574]
[1740948006576,0.27869725,621.47,620.65,3.574]
[1740948006780,0.27869725,621.46,620.65,3.574]
[1740948007181,0.27869725,621.45,620.65,3.574]
[1740948007382,0.27869725,621.44,620.65,3.574]
[1740948007583,0.27869725,621.43,620.65,3.574]
[1740948007884,0.27869725,621.42,620.65,3.574]
[1740948008082,0.27869725,621.41,620.65,3.574]
[1740948008283,0.27869725,621.4,620.65,3.574]
[1740948008485,0.27869725,621.39,620.65,3.574]
[1740948008885,0.27869725,621.38,620.65,3.574]
[1740948009087,0.27869725,621.37,620.65,3.574]
[1740948009288,0.27869725,621.36,620.65,3.574]
[1740948009483,0.27869725,621.35,620.65,3.574]
[1740948009685,0.27869725,621.34,620.65,3.574]
[1740948009882,0.27869725,621.33,620.65,3.574]
[1740948010088,0.27869725,621.32,620.65,3.574]
[1740948010388,1.4380471,621.3,620.65,3.574]
[1740948010683,0.27869725,621.29,620.65,3.574]
[1740948012885,0.27869725,621.28,620.65,3.574]
[1740948013189,0.27869725,621.27,620.65,3.574]
[1740948013390,0.27869725,621.26,620.65,3.574]
[1740948013591,0.27869725,621.32,620.65,3.574]
[1740948015088,1.144,621.33,620.65,3.574]
[1740948015288,0.27881715,621.32,620.65,3.574]
[1740948018594,0.27878409,621.31,620.65,3.574]
[1740948018895,0.27878409,621.3,620.65,3.574]
[1740948019102,0.27878409,621.29,620.65,3.574]
[1740948019292,0.27878409,621.32,620.65,3.574]
[1740948019493,0.27878409,621.31,620.65,3.574]
[1740948019794,0.27878409,621.3,620.65,3.574]
[1740948019995,0.27878409,621.32,620.65,3.574]
[1740948020195,0.27878409,621.31,620.65,3.574]
[1740948020395,0.27878409,621.32,620.65,3.574]
[1740948020690,0.27878409,621.31,620.65,3.574]
[1740948020894,0.27878409,621.3,620.65,3.574]
[1740948021098,0.27878409,621.32,620.65,3.574]
[1740948021395,0.27878409,621.31,620.65,3.574]
[1740948021596,0.27878409,621.32,620.65,3.574]
[1740948021795,0.27878409,621.31,620.65,3.574]
[1740948022096,0.27878409,621.3,620.65,3.574]
[1740948022290,0.27878409,621.29,620.65,3.574]
[1740948022493,0.27878409,621.32,620.65,3.574]
[1740948022694,0.27878409,621.31,620.65,3.574]
[1740948022896,0.27878409,621.3,620.65,3.574]
[1740948023097,0.27878409,621.29,620.65,3.574]
[1740948023397,0.27878409,621.28,620.65,3.574]
[1740948023598,0.27878409,621.27,620.65,3.574]
[1740948023799,0.27878409,621.32,620.65,3.574]
[1740948023997,0.27878409,621.31,620.65,3.574]
[1740948024397,0.27878409,621.3,620.65,3.574]
[1740948024599,0.27878409,621.29,620.65,3.574]
[1740948024900,1.4380471,621.65,620.65,3.574]
[1740948025198,0.27887559,621.63,620.65,3.574]
[1740948025398,0.27887559,621.62,620.65,3.574]
[1740948025597,0.27887559,621.61,620.65,3.574]
[1740948025798,0.27887559,621.6,620.65,3.574]
[1740948025993,0.27887559,621.59,620.65,3.574]
[1740948026198,0.27887559,621.63,620.65,3.574]
[1740948026393,0.27887559,621.62,620.65,3.574]
[1740948026597,0.27891974,621.61,620.65,3.574]
[1740948026797,0.27891974,621.6,620.65,3.574]
[1740948027094,0.27891974,621.59,620.65,3.574]
[1740948027303,0.27891974,621.58,620.65,3.574]
[1740948027603,0.27891974,621.57,620.65,3.574]
[1740948027902,0.27891974,621.56,620.65,3.574]
[1740948028100,1.4380471,621.6,620.65,3.574]
[1740948028301,0.27882946,621.59,620.65,3.574]
[1740948028501,0.27882946,621.58,620.65,3.574]
[1740948028700,0.27882946,621.57,620.65,3.574]
[1740948028901,0.27882946,621.56,620.65,3.574]
[1740948029102,0.27882946,621.55,620.65,3.574]
[1740948029302,0.27882946,621.54,620.65,3.574]
[1740948029502,2.44130857,622.2,620.65,3.574]
[1740948029503,0.27882946,621.53,620.65,3.574]
[1740948029696,0.27882946,621.52,620.65,3.574]
[1740948029898,0.27883433,621.51,620.65,3.574]
[1740948030103,0.27883433,621.5,620.65,3.574]
[1740948030298,0.27883433,621.49,620.65,3.574]
[1740948030498,0.27883433,621.48,620.65,3.574]
[1740948030701,0.27883433,621.47,620.65,3.574]
[1740948030899,0.27883433,621.46,620.65,3.574]
[1740948031105,0.27883433,621.45,620.65,3.574]
[1740948031302,0.27883433,621.44,620.65,3.574]
[1740948031506,1.4380471,621.41,620.65,3.574]
[1740948031705,0.27883433,621.4,620.65,3.574]
[1740948034009,1.4380471,621.34,620.65,3.574]
[1740948034203,0.27883433,621.33,620.65,3.574]
[1740948034803,0.27873139,621.32,620.65,3.574]
[1740948035009,0.27873139,621.33,620.65,3.574]
[1740948035204,0.27873139,621.32,620.65,3.574]
[1740948035411,0.27873139,621.33,620.65,3.574]
[1740948035705,0.27873139,621.32,620.65,3.574]
[1740948035908,0.27873139,621.31,620.65,3.574]
[1740948036111,0.27873139,621.3,620.65,3.574]
[1740948036311,0.27873139,621.33,620.65,3.574]
[1740948036612,0.27873139,621.32,620.65,3.574]
[1740948036910,0.27873139,621.31,620.65,3.574]
[1740948037103,0.27873139,621.3,620.65,3.574]
[1740948037303,0.27873139,621.29,620.65,3.574]
[1740948037507,0.27873139,621.28,620.65,3.574]
[1740948037806,0.27873139,621.27,620.65,3.574]
[1740948038007,0.27883838,621.26,620.65,3.574]
[1740948038209,0.27883838,621.25,620.65,3.574]
[1740948038408,0.27883838,621.24,620.65,3.574]
[1740948038608,0.27883838,621.41,620.65,3.574]
[1740948038805,0.27883838,621.4,620.65,3.574]
[1740948039112,0.27883838,621.39,620.65,3.574]
[1740948039312,0.27883838,621.38,620.65,3.574]
[1740948039612,2.44130857,621.98,620.65,3.574]
[1740948039613,0.27883838,621.37,620.65,3.574]
[1740948039808,0.27883838,621.57,620.65,3.574]
[1740948040005,0.27883838,621.56,620.65,3.574]
[1740948040209,1.07383838,621.57,620.65,3.574]
[1740948040407,0.27883838,621.56,620.65,3.574]
[1740948040813,0.27883838,621.55,620.65,3.574]
[1740948041011,0.27883838,621.54,620.65,3.574]
[1740948041211,0.27883838,621.56,620.65,3.574]
[1740948041408,0.27883838,621.55,620.65,3.574]
[1740948041612,0.27883838,621.56,620.65,3.574]
[1740948041911,0.27883838,621.55,620.65,3.574]
[1740948042112,0.27883838,621.54,620.65,3.574]
[1740948042315,0.27883838,621.56,620.65,3.574]
[1740948042514,1.4380471,621.5,620.65,3.574]
[1740948042714,0.27883838,621.49,620.65,3.574]
[1740948042915,1.4380471,621.5,620.65,3.574]
[1740948043117,0.27890093,621.49,620.65,3.574]
[1740948044612,0.27890643,621.48,620.65,3.574]
[1740948044817,0.27890643,621.47,620.65,3.574]
[1740948045014,0.27890643,621.46,620.65,3.574]
[1740948045219,0.27890643,621.45,620.65,3.574]
[1740948045418,0.27890643,621.44,620.65,3.574]
[1740948045617,0.27890643,621.49,620.65,3.574]
[1740948045817,0.27890643,621.48,620.65,3.574]
[1740948046018,0.27890643,621.49,620.65,3.574]
[1740948046223,0.27890643,621.48,620.65,3.574]
[1740948046518,0.27890643,621.47,620.65,3.574]
[1740948046720,0.27890643,621.52,620.65,3.574]
[1740948046920,0.27890643,621.51,620.65,3.574]
[1740948047221,0.27890643,621.5,620.65,3.574]
[1740948047414,0.27890643,621.52,620.65,3.574]
[1740948047615,0.27890643,621.51,620.65,3.574]
[1740948047821,0.27890643,621.5,620.65,3.574]
[1740948048022,0.27890643,621.49,620.65,3.574]
[1740948048222,0.27890643,621.48,620.65,3.574]
[1740948048523,0.27890643,621.47,620.65,3.574]
[1740948048724,0.27890643,621.52,620.65,3.574]
[1740948048924,0.27890643,621.51,620.65,3.574]
[1740948049117,0.27890643,621.5,620.65,3.574]
[1740948049323,0.27890643,621.49,620.65,3.574]
[1740948049629,0.795,621.57,620.65,3.574]
[1740948049630,0.27894551,621.48,620.65,3.574]
[1740948049822,0.27894551,621.49,620.65,3.574]
[1740948050126,0.27894551,621.48,620.65,3.574]
[1740948050326,0.27894551,621.49,620.65,3.574]
[1740948050526,0.27894551,621.48,620.65,3.574]
[1740948050826,0.27894551,621.47,620.65,3.574]
[1740948051125,0.27894551,621.46,620.65,3.574]
[1740948051425,0.27894551,621.45,620.65,3.574]
[1740948051626,0.27894551,621.49,620.65,2.678]
[1740948051826,0.27894551,621.48,620.65,2.678]
[1740948052021,0.27894551,621.47,620.65,2.678]
[1740948052231,0.27894551,621.46,620.65,2.678]
[1740948052823,0.27896304,621.45,620.65,2.678]
[1740948053028,0.27896304,621.44,620.65,2.678]
[1740948053323,1.4380471,621.47,620.65,2.678]
[1740948053530,0.27895886,621.46,620.65,2.678]
[1740948053828,0.27895886,621.46,620.65,1.986]
[1740948054434,1.4380471,621.47,620.65,0.977]
[1740948054625,0.27908409,621.46,620.65,0.977]
[1740948055130,0.27908409,621.45,620.34,0.977]
[1740948055424,0.27908409,621.44,620.35,0.32239864]
[1740948055630,0.27908409,621.43,620.35,0.32239864]
[1740948055833,0.27908409,621.56,620.35,0.32239864]
[1740948056832,0.27908409,621.56,620.36,0.678]
[1740948057227,0.27908409,621.55,620.36,0.678]
[1740948057433,0.27908409,621.54,620.36,0.678]
[1740948057630,0.27908409,621.53,620.36,0.678]
[1740948057835,0.27908409,621.52,620.36,0.678]
[1740948058035,0.27908409,621.51,620.36,0.678]
[1740948058335,0.27908409,621.5,620.36,0.678]
[1740948058534,0.27908409,621.49,620.36,0.678]
[1740948059334,0.842,621.5,620.36,0.678]
[1740948059532,0.2791226,621.49,620.36,0.678]
[1740948059734,0.842,621.5,620.36,0.678]
[1740948059735,1.4380471,621.45,620.36,0.678]
[1740948060033,0.2791226,621.44,620.35,0.32239864]
[1740948060237,0.2791226,621.43,620.35,0.32239864]
[1740948060437,0.2791226,621.42,620.35,0.32239864]
[1740948060636,0.2791226,621.41,620.35,0.32239864]
[1740948060839,0.2791226,621.44,620.35,0.32239864]
[1740948061032,0.2791226,621.43,620.35,0.32239864]
[1740948061233,0.2791226,621.44,620.35,0.32239864]
[1740948061438,0.2791226,621.43,620.35,0.32239864]
[1740948061638,0.2791226,621.42,620.35,0.32239864]
[1740948061838,0.2791226,621.44,620.35,0.32239864]
[1740948062039,0.2791226,621.43,620.35,0.32239864]
[1740948062234,0.27916239,621.42,620.35,0.32239864]
[1740948062434,0.27916239,621.44,620.35,0.32239864]
[1740948062638,0.27916239,621.43,620.35,0.32239864]
[1740948062835,0.27916239,621.42,620.35,0.32239864]
[1740948063032,0.27916239,621.41,620.35,0.32239864]
[1740948063237,0.27916239,621.4,620.35,0.32239864]
[1740948063733,0.84,621.41,620.35,0.32239864]
[1740948064040,0.27917646,621.4,620.35,0.32239864]
[1740948070344,0.84,621.41,620.35,0.32239864]
[1740948070539,0.279399,621.4,620.35,0.32239864]
[1740948072348,1.4380471,621.37,620.35,0.32239864]
[1740948072548,0.279399,621.36,620.35,0.32239864]
[1740948073538,1.191,621.35,620.35,0.32239864]
[1740948073739,0.279399,621.34,620.35,0.32239864]
[1740948075446,0.619,621.33,620.35,0.32239864]
[1740948075649,0.279399,621.32,620.35,0.32239864]
[1740948078447,1.356399,621.32,620.35,0.32239864]
[1740948078744,0.27934245,621.31,620.35,0.32239864]
[1740948080348,1.1413359,621.3,620.35,0.32239864]
[1740948080653,0.2793359,621.29,620.35,0.32239864]
[1740948083456,1.177,621.28,620.35,0.32239864]
[1740948083656,0.2793359,621.27,620.35,0.32239864]
[1740948085151,0.87,621.26,620.35,0.32239864]
[1740948085454,1.5233359,621.25,620.35,0.32239864]
[1740948085652,0.2793359,621.24,620.35,0.32239864]
[1740948086459,1.212,621.23,620.35,0.32239864]
[1740948086857,0.27914185,621.22,620.35,0.32239864]
[1740948089964,1.212,621.23,620.35,0.32239864]
[1740948090167,0.2791635,621.22,620.35,0.32239864]
[1740948091566,1.212,621.23,620.35,0.32239864]
[1740948091766,0.27903797,621.22,620.35,0.32239864]
[1740948092670,0.961,621.21,620.35,0.32239864]
[1740948092865,0.27903797,621.2,620.35,0.32239864]
[1740948093368,0.27903509,621.19,620.35,0.32239864]
[1740948093568,0.27903509,621.18,620.35,0.32239864]
[1740948093766,0.27903509,621.17,620.35,0.32239864]
[1740948093967,0.27903509,621.2,620.35,0.32239864]
[1740948094166,0.27903509,621.19,620.35,0.32239864]
[1740948094369,0.27903509,621.18,620.35,0.32239864]
[1740948094565,0.27903509,621.17,620.35,0.32239864]
[1740948094770,0.961,621.21,620.35,0.32239864]
[1740948094967,0.27904397,621.2,620.35,0.32239864]
[1740948095570,0.89804397,621.2,620.35,0.32239864]
[1740948095769,0.27904397,621.19,620.35,0.32239864]
[1740948098174,0.27900229,621.18,620.35,0.32239864]
[1740948098372,0.27900229,621.19,620.35,0.32239864]
[1740948098573,0.27900229,621.18,620.35,0.32239864]
[1740948098872,0.27900229,621.17,620.35,0.32239864]
[1740948099074,0.27900229,621.16,620.35,0.32239864]
[1740948099274,0.27900229,621.15,620.35,0.32239864]
[1740948099475,0.27900229,621.19,620.35,0.32239864]
[1740948099670,1.422,621.2,620.35,0.32239864]
[1740948099875,0.27900072,621.19,620.35,0.32239864]
[1740948101277,1.422,621.2,620.35,0.32239864]
[1740948101477,0.27892835,621.19,620.35,0.32239864]
[1740948102972,0.27893742,621.18,620.35,0.32239864]
[1740948103177,0.27893742,621.19,620.35,0.32239864]
[1740948103478,0.27893742,621.18,620.35,0.32239864]
[1740948103673,0.27893742,621.19,620.35,0.32239864]
[1740948103979,0.27893742,621.18,620.35,0.32239864]
[1740948104179,0.27893742,621.17,620.35,0.32239864]
[1740948104376,0.27893742,621.16,620.35,0.32239864]
[1740948104580,0.27893742,621.19,620.35,0.32239864]
[1740948104777,1.206,621.15,620.35,0.32239864]
[1740948104977,0.27893742,621.14,620.35,0.32239864]
[1740948107379,0.875,621.13,620.35,0.32239864]
[1740948107580,0.27893742,621.12,620.35,0.32239864]
[1740948109381,0.875,621.13,620.35,0.32239864]
[1740948109582,0.2788432,621.12,620.35,0.32239864]
[1740948111177,0.27887695,621.11,620.35,0.32239864]
[1740948111378,0.27887695,621.12,620.35,0.32239864]
[1740948111576,0.27887695,621.11,620.35,0.32239864]
[1740948111779,0.27887695,621.12,620.35,0.32239864]
[1740948111981,0.27887695,621.11,620.35,0.32239864]
[1740948112177,0.27887695,621.12,620.35,0.32239864]
[1740948112380,0.27887695,621.11,620.35,0.32239864]
[1740948112582,0.27887695,621.12,620.35,0.32239864]
[1740948112778,0.875,621.13,620.35,0.32239864]
[1740948112979,0.27889625,621.12,620.35,0.32239864]
[1740948114882,1.046,621.11,620.35,0.32239864]
[1740948115086,0.27889625,621.1,620.35,0.32239864]
[1740948115585,0.955,621.09,620.35,0.32239864]
[1740948115785,0.27889625,621.08,620.35,0.32239864]
[1740948123691,0.27880828,621.07,620.35,0.32239864]
[1740948123892,1.63280828,621.08,620.35,0.32239864]
[1740948124090,0.27880828,621.07,620.35,0.32239864]
[1740948124792,1.354,621.08,620.35,0.32239864]
[1740948125587,0.27880815,621.07,620.35,0.32239864]
[1740948125792,1.354,621.08,620.35,0.32239864]
[1740948127594,2.365,621.08,620.35,0.32239864]
[1740948128896,2.984,621.08,620.35,0.32239864]
[1740948130102,3.805,621.08,620.35,0.32239864]
[1740948130495,0.27867185,621.07,620.35,0.32239864]
[1740948131696,1.26167185,621.07,620.35,0.32239864]
[1740948131898,0.27867185,621.06,620.35,0.32239864]
[1740948134102,0.936,621.05,620.35,0.32239864]
[1740948134303,0.27867185,621.04,620.35,0.32239864]
[1740948134601,0.936,621.05,620.35,0.32239864]
[1740948139212,0.977,621.04,620.35,0.32239864]
[1740948145918,0.79,621.03,620.35,0.32239864]
[1740948146920,0.619,621.02,620.35,0.32239864]
[1740948150123,0.87,621.01,620.35,0.32239864]
[1740948151720,0.27895303,621.0,620.35,0.32239864]
[1740948152017,0.87,621.01,620.35,0.32239864]
[1740948152722,0.27894575,621.0,620.35,0.32239864]
[1740948153122,0.27894575,621.0,620.13,1.68231754]
[1740948153324,0.27894575,621.0,619.94,1.19666743]
[1740948153520,0.27894575,621.0,619.95,0.29616018]
[1740948153724,0.27894575,621.0,620.13,1.6823582]
[1740948154024,0.27894575,621.0,619.94,1.19666743]
[1740948154222,0.27894575,621.0,620.13,1.6823582]
[1740948154420,0.27894575,621.0,619.94,1.19666743]
[1740948154618,0.27894575,621.0,619.95,0.29615177]
[1740948154925,0.27894334,620.99,619.96,0.29615002]
[1740948155117,0.27894334,621.0,619.95,0.29615002]
[1740948155423,0.27894334,621.0,619.72,1.19666743]
[1740948155424,0.27894334,620.99,620.03,1.19666743]
[1740948155624,0.27894334,621.0,620.03,1.19666743]
[1740948155824,0.27894334,620.99,620.03,1.19666743]
[1740948156018,0.27894334,621.0,620.04,0.29614561]
[1740948156222,0.27894334,620.99,620.04,0.29614561]
[1740948156419,0.27894334,621.0,620.03,1.19666743]
[1740948156619,0.27894334,621.0,620.04,0.29614702]
[1740948157419,0.958,620.99,620.04,0.29614702]
[1740948157725,0.958,620.99,620.09,1.19666743]
[1740948159828,1.239,620.98,620.09,1.19666743]
[1740948160828,1.239,620.98,620.03,1.68237176]
[1740948161629,0.27890918,620.97,620.03,1.68237176]
[1740948162129,0.864,620.96,620.03,1.68237176]
[1740948162330,0.27890918,620.95,619.92,1.19666743]
[1740948162529,0.27890918,620.95,620.03,1.68263613]
[1740948162729,0.27890918,620.95,619.92,1.19666743]
[1740948163131,0.27890918,620.95,620.03,1.68263613]
[1740948163329,1.20990918,620.95,619.92,1.19666743]
[1740948163531,0.27890918,620.94,619.92,1.19666743]
[1740948163730,0.27890918,620.94,619.85,1.19666743]
[1740948163925,0.27890918,620.94,619.86,0.29621349]
[1740948164528,0.27890918,620.94,619.87,1.68276496]
[1740948164731,0.27890918,620.94,619.88,0.29621349]
[1740948165626,0.27890918,620.94,619.87,1.6827514]
[1740948165831,0.27890918,620.94,619.88,0.29621349]
[1740948166331,0.89790918,620.94,619.98,1.19666743]
[1740948166526,0.27890918,620.93,619.98,1.19666743]
[1740948168532,0.27890918,620.93,619.93,1.19666743]
[1740948169933,0.619,620.94,619.93,1.19666743]